bitfinex-derivatives/quotes_SOLF0:USTF0_20250731
["timestamp","ask_amount","ask_price","bid_price","bid_amount"]
[1753924447977,3.19,179.38,179.35,3.07969232]
[1753924448180,3.19,179.38,179.33,5.37969232]
[1753924450479,3.19,179.38,179.33,3.07969232]
[1753924450679,3.19,179.38,179.34,2.3]
[1753924453275,4.14222199,179.37,179.34,2.3]
[1753924453482,3.19,179.38,179.34,2.3]
[1753924453777,3.19,179.36,179.34,2.3]
[1753924453978,3.19,179.36,179.33,5.37969232]
[1753924455481,3.19,179.36,179.33,3.07969232]
[1753924455784,3.19,179.36,179.34,2.3]
[1753924456682,3.19,179.36,179.31,2.3]
[1753924456981,3.19,179.34,179.3,5.37969232]
[1753924458482,3.19,179.34,179.31,2.3]
[1753924459684,3.19,179.34,179.3,5.37969232]
[1753924460485,3.19,179.34,179.31,2.3]
[1753924463083,3.19,179.34,179.32,2.3]
[1753924464586,3.19,179.38,179.33,2.3]
[1753924464781,4.13901584,179.37,179.33,2.3]
[1753924464986,3.19,179.35,179.33,2.3]
[1753924465392,3.19,179.35,179.34,3.07969232]
[1753924465592,3.19,179.35,179.34,5.37969232]
[1753924466899,3.19,179.41,179.34,3.07969232]
[1753924467098,3.19,179.39,179.35,2.3]
[1753924467292,3.19,179.37,179.35,2.3]
[1753924467489,3.19,179.36,179.35,2.3]
[1753924467788,7.77807056,179.42,179.35,2.3]
[1753924467789,3.19,179.41,179.35,2.3]
[1753924467996,3.19,179.39,179.36,2.3]
[1753924468195,3.1,179.37,179.36,2.3]
[1753924468494,3.1,179.37,179.36,3.07969232]
[1753924468699,3.1,179.39,179.37,2.3]
[1753924468900,7.23817304,179.38,179.37,2.3]
[1753924469502,3.1,179.38,179.37,2.3]
[1753924469701,3.1,179.38,179.36,3.07969232]
[1753924469902,3.1,179.38,179.36,5.37969232]
[1753924470798,3.1,179.37,179.36,5.37969232]
[1753924472204,7.77807056,179.44,179.36,5.37969232]
[1753924472502,3.1,179.42,179.38,2.3]
[1753924472697,3.1,179.4,179.37,2.3]
[1753924472901,3.1,179.38,179.37,2.3]
[1753924474107,3.1,179.38,179.36,5.37969232]
[1753924477004,3.1,179.38,179.36,3.07969232]
[1753924477704,3.1,179.38,179.34,3.07969232]
[1753924478505,3.1,179.38,179.34,5.38969232]
[1753924480205,3.1,179.38,179.34,3.07969232]
[1753924482496,3.1,179.38,179.34,5.38969232]
[1753924483199,3.1,179.38,179.35,2.31]
[1753924483909,3.1,179.38,179.34,5.38969232]
[1753924484409,3.1,179.38,179.34,3.07969232]
[1753924485003,3.1,179.38,179.32,3.07969232]
[1753924485213,4.15890238,179.37,179.3,5.38969232]
[1753924485410,3.1,179.38,179.3,5.38969232]
[1753924485411,3.1,179.38,179.31,2.31]
[1753924485606,3.1,179.36,179.32,2.31]
[1753924486206,3.1,179.36,179.33,2.31]
[1753924487103,3.1,179.36,179.32,3.07969232]
[1753924487307,3.1,179.36,179.33,2.31]
[1753924487608,3.1,179.41,179.35,2.31]
[1753924487806,3.1,179.39,179.36,3.07969232]
[1753924488012,3.1,179.39,179.37,2.31]
[1753924488406,3.1,179.38,179.37,2.31]
[1753924491008,3.1,179.38,179.36,3.07969232]
[1753924491708,3.1,179.42,179.36,3.07969232]
[1753924491912,3.1,179.4,179.36,3.07969232]
[1753924492212,3.1,179.38,179.36,3.07969232]
[1753924493507,3.1,179.38,179.36,5.38969232]
[1753924494109,3.1,179.38,179.36,3.07969232]
[1753924494312,3.1,179.38,179.36,5.38969232]
[1753924497013,3.1,179.38,179.36,3.07969232]
[1753924497911,3.1,179.38,179.36,5.38969232]
[1753924500217,7.77807056,179.44,179.36,3.07969232]
[1753924500414,7.38796337,179.43,179.37,2.31]
[1753924500616,3.23,179.41,179.38,3.07969232]
[1753924500810,3.23,179.4,179.39,2.31]
[1753924502616,3.23,179.4,179.38,5.38969232]
[1753924502816,3.23,179.4,179.37,5.38969232]
[1753924503418,3.23,179.4,179.35,3.07969232]
[1753924503619,3.23,179.4,179.36,2.31]
[1753924503820,3.23,179.4,179.35,5.38969232]
[1753924504419,3.23,179.4,179.36,2.31]
[1753924505523,3.23,179.4,179.37,2.31]
[1753924505919,3.23,179.4,179.35,3.07969232]
[1753924506121,3.23,179.4,179.36,2.31]
[1753924506626,3.23,179.4,179.35,3.07969232]
[1753924506817,3.23,179.4,179.35,5.38969232]
[1753924508422,3.23,179.4,179.36,2.31]
[1753924511421,3.23,179.4,179.37,2.31]
[1753924511823,3.23,179.38,179.37,2.31]
[1753924512325,3.23,179.37,179.36,2.31]
[1753924513630,3.23,179.38,179.36,2.31]
[1753924513821,4.69837824,179.44,179.37,3.07969232]
[1753924514130,4.16527374,179.43,179.38,2.31]
[1753924514325,3.23,179.4,179.38,2.31]
[1753924514520,3.23,179.42,179.38,2.31]
[1753924514826,3.23,179.4,179.38,2.31]
[1753924515327,3.23,179.4,179.39,3.07969232]
[1753924515527,3.23,179.4,179.39,5.38969232]
[1753924516627,3.23,179.41,179.39,5.38969232]
[1753924516829,3.23,179.41,179.4,2.31]
[1753924517724,3.23,179.41,179.39,3.07969232]
[1753924518829,3.23,179.41,179.28,214.52770235]
[1753924518830,3.23,179.41,179.37,3.07969232]
[1753924519231,3.23,179.41,179.37,5.38969232]
[1753924519819,3.23,179.41,179.28,214.52770235]
[1753924520021,3.23,179.39,179.34,3.07969232]
[1753924520226,3.23,179.39,179.34,5.38969232]
[1753924520623,3.23,179.39,179.35,2.31]
[1753924521726,3.23,179.39,179.36,5.38969232]
[1753924523229,3.23,179.39,179.36,3.07969232]
[1753924523428,7.24242848,179.38,179.29,3.07969232]
[1753924523632,6.30969232,179.36,179.28,211.44801003]
[1753924523936,3.23,179.34,179.28,211.44801003]
[1753924524235,3.23,179.32,179.28,211.44801003]
[1753924524423,3.23,179.31,179.23,5.38969232]
[1753924524830,3.23,179.29,179.23,2.31]
[1753924525132,3.23,179.29,179.21,5.38969232]
[1753924525327,3.23,179.27,179.21,2.31]
[1753924527230,3.23,179.27,179.21,3.07969232]
[1753924527527,3.23,179.27,179.22,2.31]
[1753924528728,3.23,179.27,179.19,2.31]
[1753924529031,3.23,179.27,179.2,5.38969232]
[1753924529734,3.23,179.27,179.21,2.31]
[1753924531232,3.23,179.27,179.21,5.38969232]
[1753924531632,3.23,179.27,179.23,3.07969232]
[1753924531831,3.05,179.31,179.25,3.07969232]
[1753924532030,3.05,179.31,179.26,2.31]
[1753924532230,3.05,179.31,179.27,2.31]
[1753924533734,3.05,179.31,179.25,5.38969232]
[1753924534637,3.05,179.31,179.25,3.07969232]
[1753924535334,3.05,179.31,179.24,2.31]
[1753924536035,3.07969232,179.3,179.23,3.07969232]
[1753924536235,3.05,179.29,179.21,5.38969232]
[1753924536931,3.05,179.29,179.21,2.31]
[1753924538241,3.07969232,179.28,179.21,2.31]
[1753924538442,3.05,179.27,179.19,2.31]
[1753924540642,3.05,179.27,179.19,5.38969232]
[1753924541849,3.05,179.27,179.2,2.31]
[1753924547847,3.05,179.25,179.18,196.96092198]
[1753924548061,3.05,179.23,179.18,196.96092198]
[1753924548354,3.05,179.23,179.18,2.31]
[1753924548653,3.05,179.23,179.17,3.07969232]
[1753924549355,3.05,179.23,179.17,5.38969232]
[1753924549654,3.05,179.23,179.18,2.31]
[1753924550957,3.05,179.23,179.17,3.07969232]
[1753924551148,3.05,179.23,179.19,2.31]
[1753924551555,3.05,179.23,179.17,5.38969232]
[1753924551860,3.05,179.23,179.16,2.31]
[1753924553452,3.05,179.23,179.17,3.07969232]
[1753924553650,3.05,179.22,179.18,2.31]
[1753924554252,3.05,179.22,179.2,2.31]
[1753924554656,3.05,179.22,179.21,2.31]
[1753924555754,3.07969232,179.27,179.21,2.31]
[1753924555954,3.05,179.23,179.22,2.31]
[1753924556250,3.05,179.26,179.2,2.31]
[1753924557359,3.05,179.26,179.18,5.38969232]
[1753924557757,3.05,179.26,179.18,3.07969232]
[1753924557958,3.05,179.26,179.19,2.31]
[1753924559461,3.25,179.24,179.18,3.07969232]
[1753924559654,3.25,179.24,179.17,2.3]
[1753924560860,3.25,179.2,179.12,2.3]
[1753924561865,3.25,179.2,179.14,2.3]
[1753924562560,3.25,179.19,179.16,2.3]
[1753924562956,3.07969232,179.25,179.17,3.07969232]
[1753924563162,3.25,179.2,179.19,2.3]
[1753924563866,3.25,179.2,179.17,5.37969232]
[1753924566870,3.25,179.19,179.18,2.3]
[1753924567475,3.25,179.21,179.18,2.3]
[1753924567662,3.25,179.2,179.19,2.3]
[1753924572568,3.25,179.22,179.19,2.3]
[1753924572776,3.25,179.21,179.2,2.3]
[1753924573866,3.25,179.26,179.2,2.3]
[1753924574073,3.25,179.24,179.21,5.37969232]
[1753924574468,3.25,179.24,179.22,2.3]
[1753924575467,3.25,179.24,179.18,5.37969232]
[1753924575671,3.25,179.22,179.18,5.37969232]
[1753924576068,3.25,179.22,179.18,3.07969232]
[1753924576274,3.25,179.22,179.18,5.37969232]
[1753924576574,3.25,179.22,179.16,5.37969232]
[1753924576765,3.25,179.22,179.17,2.3]
[1753924577976,3.25,179.21,179.19,2.3]
[1753924578775,3.25,179.23,179.2,2.3]
[1753924579884,3.25,179.23,179.2,5.37969232]
[1753924583381,3.25,179.23,179.2,3.07969232]
[1753924583583,3.25,179.23,179.19,2.31]
[1753924583780,3.25,179.23,179.18,2.31]
[1753924583980,3.25,179.23,179.15,3.07969232]
[1753924584183,3.25,179.21,179.15,3.07969232]
[1753924584388,3.25,179.21,179.14,2.31]
[1753924584577,7.42406791,179.2,179.12,2.31]
[1753924584775,3.25,179.19,179.12,2.31]
[1753924586580,6.32969232,179.19,179.11,5.38969232]
[1753924586786,3.25,179.18,179.11,2.31]
[1753924587180,3.25,179.18,179.09,3.07969232]
[1753924587386,3.25,179.18,179.09,5.38969232]
[1753924587586,3.25,179.16,179.1,2.31]
[1753924588389,3.25,179.16,179.08,5.39969232]
[1753924589680,3.25,179.16,179.09,2.32]
[1753924590085,3.18,179.14,179.08,3.07969232]
[1753924590486,3.18,179.14,179.08,5.39969232]
[1753924591592,3.18,179.14,179.08,3.07969232]
[1753924591792,3.18,179.14,179.09,2.32]
[1753924592092,3.18,179.14,179.08,3.07969232]
[1753924592392,3.18,179.14,179.1,2.32]
[1753924594493,3.18,179.14,179.08,2.32]
[1753924594684,3.18,179.14,179.06,2.32]
[1753924595095,3.18,179.12,179.06,2.32]
[1753924595294,3.07969232,179.11,179.04,2.32]
[1753924595496,3.18,179.1,179.04,2.32]
[1753924595693,3.18,179.1,179.03,5.39969232]
[1753924596288,3.18,179.1,179.03,2.32]
[1753924599995,3.18,179.1,179.02,5.39969232]
[1753924600191,3.18,179.09,178.93,28.38019336]
[1753924600397,3.18,179.09,179.01,2.32]
[1753924601395,6.25969232,179.09,179.01,2.32]
[1753924601595,3.18,179.08,179.01,2.32]
[1753924601790,4.95622916,179.07,179.01,2.32]
[1753924601996,3.18,179.05,179.02,2.32]
[1753924602591,3.18,179.03,179.02,2.32]
[1753924603199,3.18,179.03,178.99,3.07969232]
[1753924603396,3.18,179.06,179.0,2.32]
[1753924603596,3.18,179.04,178.99,3.07969232]
[1753924603794,3.18,179.03,179.02,2.32]
[1753924604200,3.18,179.03,178.94,2.32]
[1753924604503,3.18,179.03,179.02,2.32]
[1753924606699,3.18,179.03,179.01,2.32]
[1753924606900,3.18,179.03,179.02,2.32]
[1753924607095,3.18,179.07,179.01,2.32]
[1753924607301,3.18,179.05,179.02,2.32]
[1753924607490,3.18,179.03,179.0,5.39969232]
[1753924607694,3.18,179.03,179.01,2.32]
[1753924607899,7.77807056,179.08,179.01,2.32]
[1753924608095,3.18,179.02,179.0,3.07969232]
[1753924608298,3.18,179.06,179.0,3.07969232]
[1753924608502,3.18,179.04,179.0,5.39969232]
[1753924608700,3.18,179.02,179.01,2.32]
[1753924609703,3.18,179.06,179.01,2.32]
[1753924609900,3.18,179.04,179.01,2.32]
[1753924610502,3.18,179.03,179.01,2.32]
[1753924611603,3.18,179.03,179.02,2.32]
[1753924615104,8.1177881,179.03,179.02,2.32]
[1753924616106,4.9377881,179.03,179.0,3.07969232]
[1753924616309,3.18,179.02,179.01,2.31]
[1753924616507,3.18,179.01,179.0,5.38969232]
[1753924616708,3.18,179.03,179.0,5.38969232]
[1753924617009,4.69837824,179.07,179.0,5.38969232]
[1753924617207,3.18,179.02,179.0,5.38969232]
[1753924617507,3.18,179.02,179.01,2.31]
[1753924617903,3.18,179.06,178.95,2.31]
[1753924618102,3.18,179.04,178.99,3.07969232]
[1753924618309,3.26,179.02,178.99,5.38969232]
[1753924619009,3.26,179.02,178.99,3.07969232]
[1753924619310,3.26,179.02,179.0,2.31]
[1753924620312,3.26,179.06,179.0,2.31]
[1753924620506,3.26,179.04,179.01,2.31]
[1753924620708,3.26,179.02,178.99,3.07969232]
[1753924620913,3.26,179.01,179.0,2.31]
[1753924621512,8.20164244,179.01,179.0,2.31]
[1753924622105,8.20164244,179.01,178.99,3.07969232]
[1753924622310,3.26,179.0,178.99,5.38969232]
[1753924624420,8.16341848,179.0,178.99,5.38969232]
[1753924625315,3.26,179.04,179.0,2.31]
[1753924625513,3.26,179.04,179.03,5.38969232]
[1753924625716,8.16513412,179.04,179.03,5.38969232]
[1753924626416,8.16513412,179.04,179.01,5.38969232]
[1753924626718,8.16513412,179.03,179.02,2.31]
[1753924630020,4.90513412,179.03,179.02,2.31]
[1753924631821,3.26,179.03,179.02,2.31]
[1753924639922,3.26,179.08,179.02,2.31]
[1753924640122,3.26,179.06,179.04,3.07969232]
[1753924644024,3.26,179.09,179.04,3.07969232]
[1753924644223,3.26,179.07,179.06,3.07969232]
[1753924644420,4.459875,179.07,179.06,3.07969232]
[1753924644621,7.719875,179.07,179.06,3.07969232]
[1753924645120,3.26,179.07,179.06,3.07969232]
[1753924646025,7.71864952,179.07,179.06,3.07969232]
[1753924646224,3.26,179.07,179.06,3.07969232]
[1753924656724,3.26,179.07,179.06,1.97583243]
[1753924658034,3.1,179.06,179.03,1.97583243]
[1753924660829,3.1,179.06,179.01,3.08882645]
[1753924662229,4.41634378,179.05,179.01,3.08882645]
[1753924662432,3.1,179.04,179.01,3.08882645]
[1753924667745,3.1,179.04,179.01,5.39882645]
[1753924669651,3.1,179.04,178.97,211.70493968]
[1753924669850,3.1,179.04,179.0,3.08882645]
[1753924672449,3.1,179.04,178.99,2.31]
[1753924672645,3.1,179.04,179.0,3.08882645]
[1753924673045,3.1,179.02,178.98,5.39882645]
[1753924673247,3.1,179.02,178.98,3.08882645]
[1753924673548,3.1,179.02,178.99,2.31]
[1753924676952,3.1,179.02,178.98,3.08882645]
[1753924677152,3.1,179.0,178.96,5.39882645]
[1753924677352,3.1,179.0,178.96,2.31]
[1753924677553,3.1,179.0,178.96,5.39882645]
[1753924678147,3.1,179.0,178.96,2.31]
[1753924678352,3.1,179.0,178.96,5.39882645]
[1753924679253,10.95720469,179.04,178.91,2.32]
[1753924679458,3.17,179.02,178.95,5.40882645]
[1753924679660,3.17,179.0,178.95,5.40882645]
[1753924679854,3.17,179.0,178.96,2.32]
[1753924680563,3.17,179.0,178.95,3.08882645]
[1753924680564,3.17,179.0,178.97,2.32]
[1753924680761,3.17,179.0,178.98,1.97787094]
[1753924681862,3.17,179.0,178.97,2.32]
[1753924682055,3.17,179.0,178.98,1.97787094]
[1753924682660,3.17,179.0,178.97,2.32]
[1753924682865,3.17,179.0,178.98,1.97787094]
[1753924683158,3.17,179.02,178.99,2.32]
[1753924683358,3.17,179.02,179.0,1.97787094]
[1753924684359,3.17,179.02,179.0,4.29787094]
[1753924684559,1.97787094,179.05,179.0,4.29787094]
[1753924684754,3.17,179.01,179.0,4.29787094]
[1753924685663,3.17,179.04,179.0,1.97787094]
[1753924685857,4.4069125,179.03,179.0,1.97787094]
[1753924686162,3.17,179.02,179.0,1.97787094]
[1753924686552,3.17,179.02,179.01,2.32]
[1753924687259,3.17,179.02,179.0,4.29787094]
[1753924688057,3.17,179.05,178.95,2.32]
[1753924688262,4.69837824,179.07,179.0,1.97787094]
[1753924688263,3.17,179.03,179.0,1.97787094]
[1753924689464,1.97787094,179.03,179.0,1.97787094]
[1753924689659,3.17,179.02,179.0,1.97787094]
[1753924690057,3.17,179.02,178.97,2.32]
[1753924690362,3.17,179.02,178.99,1.97787094]
[1753924691162,3.17,179.02,179.01,1.97787094]
[1753924692470,3.17,179.02,178.99,2.32]
[1753924692763,3.17,179.02,178.99,5.40947961]
[1753924693766,3.17,179.07,179.0,2.32]
[1753924694064,3.17,179.05,179.02,2.32]
[1753924694362,3.17,179.03,179.02,2.32]
[1753924694960,3.17,179.09,179.02,2.32]
[1753924695162,3.17,179.07,179.05,2.32]
[1753924695371,3.17,179.07,179.04,5.40947961]
[1753924695863,3.17,179.06,179.04,3.08947961]
[1753924696057,3.17,179.08,179.06,3.08947961]
[1753924696462,3.17,179.08,179.07,2.32]
[1753924696856,3.17,179.11,179.07,2.32]
[1753924697067,4.68842969,179.17,179.1,5.40947961]
[1753924697265,3.17,179.13,179.11,2.32]
[1753924698267,3.17,179.13,179.1,3.08947961]
[1753924699372,3.17,179.13,179.09,2.32]
[1753924699568,3.17,179.13,179.1,3.08947961]
[1753924701567,3.17,179.13,179.1,5.40947961]
[1753924702167,3.17,179.13,179.1,3.08947961]
[1753924702467,3.17,179.13,179.09,5.40947961]
[1753924703169,3.17,179.13,179.07,3.08947961]
[1753924703364,3.17,179.11,179.07,3.08947961]
[1753924703868,3.17,179.11,179.07,5.40947961]
[1753924704173,3.17,179.15,179.09,5.40947961]
[1753924704362,3.17,179.13,179.1,2.32]
[1753924705071,3.17,179.13,179.09,3.08947961]
[1753924705365,3.17,179.13,179.09,5.40947961]
[1753924705966,3.17,179.13,179.09,3.08947961]
[1753924706160,3.17,179.13,179.07,3.08947961]
[1753924706572,3.17,179.11,179.05,5.40947961]
[1753924708571,3.17,179.11,179.06,2.31]
[1753924708772,3.17,179.11,179.07,5.39947961]
[1753924709268,3.17,179.11,179.08,2.31]
[1753924709473,3.17,179.11,179.09,2.31]
[1753924709664,3.11,179.1,179.09,5.39947961]
[1753924709864,3.11,179.16,179.09,3.08947961]
[1753924710062,3.11,179.14,179.09,3.08947961]
[1753924710265,4.40898616,179.13,179.09,3.08947961]
[1753924710467,3.11,179.16,179.09,3.08947961]
[1753924710667,3.11,179.14,179.09,3.08947961]
[1753924710867,3.11,179.12,179.09,3.08947961]
[1753924711371,3.11,179.12,179.09,5.39947961]
[1753924712270,3.11,179.12,179.09,2.31]
[1753924712472,3.11,179.12,179.08,5.39947961]
[1753924713477,3.11,179.12,179.08,3.08947961]
[1753924715269,3.11,179.12,179.08,5.39947961]
[1753924717076,3.11,179.12,179.08,3.08947961]
[1753924717268,3.11,179.14,179.09,2.31]
[1753924717471,3.11,179.12,179.09,2.31]
[1753924719284,3.11,179.12,179.08,3.08947961]
[1753924719477,3.11,179.12,179.06,3.08947961]
[1753924720479,3.11,179.12,179.04,3.08947961]
[1753924720674,3.11,179.12,179.04,5.39947961]
[1753924721182,3.11,179.12,179.04,3.08947961]
[1753924721377,3.11,179.12,179.05,2.31]
[1753924721778,4.40671716,179.11,179.05,2.31]
[1753924721979,3.11,179.12,179.04,5.39947961]
[1753924722180,4.39668818,179.11,179.04,5.39947961]
[1753924722381,6.19947961,179.09,179.0,216.35912049]
[1753924722578,3.11,179.07,179.0,213.26964088]
[1753924722880,3.11,179.07,179.0,210.95964088]
[1753924723182,3.11,179.07,179.0,213.26964088]
[1753924723882,4.3993422,179.06,179.0,213.26964088]
[1753924724084,3.11,179.05,179.0,213.26964088]
[1753924724781,3.11,179.05,179.01,2.31]
[1753924725275,3.11,179.08,179.01,3.08947961]
[1753924725580,3.11,179.05,179.02,2.31]
[1753924725977,3.11,179.04,179.03,2.31]
[1753924726178,3.11,179.06,179.03,2.31]
[1753924726374,3.11,179.05,179.04,2.31]
[1753924727582,3.11,179.1,179.04,2.31]
[1753924727884,3.11,179.08,179.05,2.31]
[1753924728182,3.11,179.06,179.05,2.31]
[1753924729984,3.11,179.06,179.02,3.08947961]
[1753924730185,3.11,179.06,179.03,2.31]
[1753924730386,3.11,179.05,179.04,2.31]
[1753924731087,7.7779093,179.11,179.02,2.31]
[1753924731286,4.40382796,179.1,179.02,2.31]
[1753924731483,3.11,179.08,179.02,2.31]
[1753924731683,3.11,179.06,179.03,2.31]
[1753924731884,3.11,179.06,179.01,3.08947961]
[1753924732183,3.11,179.06,179.02,2.31]
[1753924732585,3.11,179.06,179.01,5.39947961]
[1753924733685,3.11,179.06,179.01,2.31]
[1753924734285,3.11,179.06,179.02,2.31]
[1753924734784,3.11,179.06,179.03,2.31]
[1753924736291,3.11,179.06,179.01,2.31]
[1753924737492,3.11,179.06,179.0,214.04912049]
[1753924738092,3.11,179.06,179.0,216.35912049]
[1753924738294,3.11,179.06,179.01,2.31]
[1753924740290,3.11,179.06,179.02,3.08947961]
[1753924740595,7.7779093,179.1,179.02,3.08947961]
[1753924740794,3.17,179.05,179.04,2.31]
[1753924740986,3.17,179.05,179.02,5.39947961]
[1753924742794,3.17,179.05,179.02,2.31]
[1753924745704,3.17,179.05,179.0,210.95964088]
[1753924745905,3.17,179.05,179.02,2.31]
[1753924746595,4.68842969,179.1,179.03,3.08947961]
[1753924746899,3.17,179.08,179.03,2.31]
[1753924747099,3.17,179.06,179.03,2.31]
[1753924747795,7.7779093,179.11,179.03,2.31]
[1753924748000,4.41087117,179.1,179.03,2.31]
[1753924748194,4.41087117,179.09,179.03,2.31]
[1753924748394,4.41087117,179.08,179.03,2.31]
[1753924748595,3.17,179.06,179.03,2.31]
[1753924748894,3.17,179.05,179.04,2.31]
[1753924750497,4.68842969,179.1,179.02,3.08947961]
[1753924750702,3.17,179.04,179.03,2.31]
[1753924752500,3.17,179.04,179.02,3.08947961]
[1753924752801,3.17,179.04,179.0,214.04912049]
[1753924752998,4.69446837,179.1,179.02,3.08947961]
[1753924753203,3.17,179.08,179.03,2.31]
[1753924753403,3.17,179.06,179.03,2.31]
[1753924756706,3.17,179.09,179.04,2.31]
[1753924756906,3.17,179.07,179.04,2.31]
[1753924757205,3.17,179.05,179.04,2.31]
[1753924758202,3.17,179.05,179.03,2.31]
[1753924758509,7.78535069,179.1,179.03,2.31]
[1753924758701,3.17,179.04,179.03,2.31]
[1753924760005,3.17,179.04,179.02,3.08947961]
[1753924760212,3.17,179.03,179.02,5.39947961]
[1753924760401,4.69587108,179.11,179.03,2.31]
[1753924760608,4.4194821,179.1,179.09,3.08947961]
[1753924760808,4.4194821,179.1,179.09,4.285174]
[1753924761502,3.17,179.11,179.1,2.31]
[1753924761703,7.54815039,179.11,179.1,2.31]
[1753924762299,4.37815039,179.11,179.1,2.31]
[1753924762512,3.17,179.13,179.11,2.31]
[1753924762812,7.54717044,179.12,179.11,2.31]
[1753924763012,4.37717044,179.12,179.01,2.31]
[1753924763211,3.17,179.14,179.01,2.31]
[1753924764006,3.17,179.14,179.13,5.39565047]
[1753924764205,7.54515784,179.14,179.13,5.39565047]
[1753924765406,3.17,179.14,179.13,5.39565047]
[1753924765912,3.17,179.14,179.13,2.31]
[1753924766814,6.25565047,179.14,179.04,3.08565047]
[1753924767012,7.54067279,179.13,179.04,5.39565047]
[1753924767214,3.17,179.1,179.05,2.31]
[1753924767613,3.08565047,179.14,179.06,3.08565047]
[1753924767810,3.17,179.12,179.07,2.31]
[1753924768705,3.17,179.12,179.06,3.08565047]
[1753924768905,3.17,179.12,179.07,2.31]
[1753924769107,3.17,179.12,179.08,3.08565047]
[1753924769314,3.17,179.12,179.09,2.31]
[1753924770113,3.08565047,179.15,179.08,3.08565047]
[1753924770415,3.08565047,179.15,179.01,3.08565047]
[1753924770416,3.17,179.13,179.07,5.39565047]
[1753924770612,3.17,179.13,179.08,2.31]
[1753924771118,3.17,179.13,179.09,2.31]
[1753924772015,3.17,179.12,179.02,2.31]
[1753924772217,3.17,179.12,179.08,2.31]
[1753924772514,3.17,179.12,179.07,5.39565047]
[1753924773020,3.17,179.12,179.08,2.31]
[1753924773421,3.17,179.12,179.07,5.39565047]
[1753924773614,3.17,179.11,179.07,5.39565047]
[1753924773818,3.17,179.11,179.08,2.31]
[1753924775022,3.17,179.11,179.07,3.08565047]
[1753924775320,3.17,179.11,179.07,5.39565047]
[1753924775523,3.17,179.11,179.07,3.08565047]
[1753924775722,3.17,179.11,179.05,3.08565047]
[1753924775914,3.17,179.11,179.03,3.08565047]
[1753924776116,3.17,179.11,179.03,5.39565047]
[1753924776319,3.17,179.11,179.04,2.31]
[1753924778117,3.17,179.11,179.07,3.08565047]
[1753924778321,3.17,179.11,179.08,2.31]
[1753924779420,3.17,179.14,179.08,2.31]
[1753924779625,3.17,179.12,179.08,2.31]
[1753924785522,3.17,179.12,179.06,3.08565047]
[1753924785728,3.17,179.12,179.06,5.39565047]
[1753924786523,7.42026664,179.11,179.03,2.31]
[1753924786728,3.17,179.08,179.01,3.08565047]
[1753924786922,3.17,179.08,179.01,2.31]
[1753924789330,4.33637958,179.07,179.01,2.31]
[1753924789531,3.17,179.08,179.01,2.31]
[1753924789834,3.17,179.06,179.01,2.31]
[1753924790029,3.17,179.06,179.02,2.31]